Workbook

Sheet Requirements
B2: Guns of Glory - WTO Upgrade Program
B4: Select your Next SH Level, Armor Type and whether to include Wall Requirements
B5: Stronghold | C5: 24 | D5: Armor | E5: ORANGE | F5: SELECT SH Level & Armor
B6: Wall | C6: =$C$5-1 -> 23 | D6: Include ? | E6: NO | F6: SELECT Upgrade Wall Yes/No
B7: Please don't modify the shaded & colored areas below this line.
B8: For Modifications Please ask LrdWreckingBunny.
C10: Food | D10: Wood | E10: Iron | F10: Silver | H10: Food | I10: In Bags | J10: Totals | L10: Wood | M10: In Bags | N10: Totals | P10: Iron | Q10: In Bags | R10: Totals | T10: Silver | U10: In Bags | V10: Totals
B11: Wall | C11: =IF($E$6="Yes",VLOOKUP($C$5-1,Tables!$S$3:$W$37,2,0),0) -> 0 | D11: =IF($E$6="Yes",VLOOKUP($C$5-1,Tables!$S$3:$W$37,3,0),0) -> 0 | E11: =IF($E$6="Yes",VLOOKUP($C$5-1,Tables!$S$3:$W$37,4,0),0) -> 0 | F11: =IF($E$6="Yes",VLOOKUP($C$5-1,Tables!$S$3:$W$37,5,0),0) -> 0 | H11: 1000 | J11: =H11*I11 -> 0 | L11: 1000 | N11: =L11*M11 -> 0 | P11: 200 | R11: =P11*Q11 -> 0 | T11: 50 | V11: =T11*U11 -> 0
B12: Stronghold | C12: =VLOOKUP($C$5,Tables!$M$3:$Q$37,2,0) -> 48000000 | D12: =VLOOKUP($C$5,Tables!$M$3:$Q$37,3,0) -> 9220000 | E12: =VLOOKUP($C$5,Tables!$M$3:$Q$37,4,0) -> 9220000 | F12: =VLOOKUP($C$5,Tables!$M$3:$Q$37,5,0) -> 1850000 | H12: 3000 | J12: =H12*I12 -> 0 | L12: 3000 | N12: =L12*M12 -> 0 | P12: 600 | R12: 0 | T12: 150 | V12: =T12*U12 -> 0
B13: Total | C13: =SUM(C11:C12) -> 48000000 | D13: =SUM(D11:D12) -> 9220000 | E13: 9220000 | F13: 1850000 | H13: 5000 | J13: 0 | L13: 5000 | N13: 0 | P13: 1000 | R13: 0 | T13: 250 | V13: 0
B14: Have | C14: =J19 -> 0 | D14: =N19 -> 0 | E14: =R19 -> 0 | F14: =V19 -> 0 | H14: 10000 | J14: 0 | L14: 10000 | N14: 0 | P14: 2000 | R14: 0 | T14: 500 | V14: 0
B15: Armor % | C15: =ABS(VLOOKUP($E$5,Tables!$B$2:$J$46,3,0)) -> 0.1 | D15: =ABS(VLOOKUP($E$5,Tables!$B$2:$J$46,5,0)) -> 0.1 | E15: =ABS(VLOOKUP($E$5,Tables!$B$2:$J$46,7,0)) -> 0.1 | F15: =ABS(VLOOKUP($E$5,Tables!$B$2:$J$46,7,0)) -> 0.1 | H15: 30000 | J15: 0 | L15: 30000 | N15: 0 | P15: 6000 | R15: 0 | T15: 1500 | V15: 0
B16: Armor Qty | C16: =ABS(VLOOKUP($E$5,Tables!$B$2:$J$46,2,0)) -> 6000000 | D16: =ABS(VLOOKUP($E$5,Tables!$B$2:$J$46,4,0)) -> 3000000 | E16: =ABS(VLOOKUP($E$5,Tables!$B$2:$J$46,6,0)) -> 600000 | F16: =ABS(VLOOKUP($E$5,Tables!$B$2:$J$46,8,0)) -> 1200000 | H16: 50000 | J16: 0 | L16: 50000 | N16: 0 | P16: 30000 | R16: 0 | T16: 2500 | V16: 0
B17: Reduction | C17: =((C15*C13)+C16) -> 10800000 | D17: =((D15*D13)+D16) -> 3922000 | E17: 1522000 | F17: 1385000 | H17: 150000 | J17: 0 | L17: 150000 | N17: 0 | P17: 100000 | R17: 0 | T17: 25000 | V17: 0
H18: ON HAND | L18: ON HAND | P18: ON HAND | T18: ON HAND | V18: nn
B19: Need | C19: =IF(C13-(C14+C17)<0,0,C13-(C14+C17)) -> 37200000 | D19: =IF(D13-(D14+D17)<0,0,D13-(D14+D17)) -> 5298000 | E19: 7698000 | F19: 465000 | H19: Total | J19: =SUM(J11:J18) -> 0 | L19: Total | N19: =SUM(N11:N18) -> 0 | P19: Total | R19: =SUM(R11:R18) -> 0 | T19: Total | V19: =SUM(V11:V18) -> 0

Sheet Tables (hidden)
B1: Please Do Not Modify Anything On This Page
B2: Blue Iseult Armor | L2: Armor | M2: SH | N2: Food | O2: Wood | P2: Iron | Q2: Silver | S2: Wall | T2: Food | U2: Wood | V2: Iron | W2: Silver
C3: food | E3: wood | G3: Silver | I3: Iron | L3: NONE | M3: 1 | S3: 1 | T3: 0 | U3: 0 | V3: 0 | W3: 0
B4: Helm | C4: -750000 | L4: BLUE | M4: 2 | N4: 2900 | O4: 2900 | S4: 2 | T4: 0 | U4: 2040 | V4: 0 | W4: 0
B5: Armor | E5: -500000 | L5: PURPLE | M5: 3 | N5: 4400 | O5: 4400 | S5: 3 | T5: 0 | U5: 3060 | V5: 0 | W5: 0
B6: Ring | I6: -300000 | L6: ORANGE | M6: 4 | N6: 7000 | O6: 7000 | S6: 4 | T6: 0 | U6: 4900 | V6: 0 | W6: 0
L7: Retribution | M7: 5 | N7: 12000 | O7: 12000 | S7: 5 | T7: 0 | U7: 8320 | V7: 0 | W7: 0
B8: Weapon | C8: -750000 | M8: 6 | N8: 21000 | O8: 21000 | S8: 6 | T8: 0 | U8: 15000 | V8: 0 | W8: 0
B9: Boots | E9: -250000 | M9: 7 | N9: 41000 | O9: 41000 | S9: 7 | T9: 0 | U9: 28500 | V9: 0 | W9: 0
B10: Pendant | I10: -300000 | L10: Query | M10: 8 | N10: 81000 | O10: 81000 | S10: 8 | T10: 0 | U10: 56900 | V10: 0 | W10: 0
B11: BLUE | C11: =SUM(C4:C10) -> -1500000 | D11: 0 | E11: -750000 | F11: 0 | G11: 0 | H11: 0 | I11: -600000 | J11: 0 | L11: YES | M11: 9 | N11: 163000 | O11: 163000 | S11: 9 | T11: 0 | U11: 114000 | V11: 0 | W11: 0
L12: NO | M12: 10 | N12: 326000 | O12: 326000 | S12: 10 | T12: 0 | U12: 228000 | V12: 0 | W12: 0
B13: Purple Iseult Armor | M13: 11 | N13: 627000 | O13: 627000 | P13: 6600 | S13: 11 | T13: 0 | U13: 439000 | V13: 4620 | W13: 0
C14: food | E14: wood | G14: Silver | I14: Iron | M14: 12 | N14: 1140000 | O14: 1140000 | P14: 25000 | S14: 12 | T14: 0 | U14: 795000 | V14: 17660 | W14: 0
B15: Helm | E15: -500000 | F15: -0.025 | I15: -200000 | M15: 13 | N15: 1920000 | O15: 1920000 | P15: 68000 | S15: 13 | T15: 0 | U15: 1300000 | V15: 48000 | W15: 0
B16: Armor | C16: -1000000 | D16: -0.05 | G16: -100000 | M16: 14 | N16: 3020000 | O16: 3020000 | P16: 151000 | S16: 14 | T16: 0 | U16: 2110000 | V16: 105600 | W16: 0
B17: Ring | C17: -1000000 | H17: -0.025 | I17: -200000 | M17: 15 | N17: 4380000 | O17: 4380000 | P17: 292000 | S17: 15 | T17: 0 | U17: 3070000 | V17: 206000 | W17: 0
M18: 16 | N18: 6020000 | O18: 5850000 | P18: 502000 | S18: 16 | T18: 0 | U18: 4100000 | V18: 352000 | W18: 0
B19: Weapon | C19: -1000000 | G19: -100000 | J19: -0.05 | M19: 17 | N19: 7780000 | O19: 6770000 | P19: 790000 | Q19: 28000 | S19: 17 | T19: 0 | U19: 4740000 | V19: 554000 | W19: 19750
B20: Boots | E20: -500000 | F20: -0.025 | G20: -100000 | M20: 18 | N20: 10100000 | O20: 7610000 | P20: 1220000 | Q20: 77000 | S20: 18 | T20: 0 | U20: 5330000 | V20: 854000 | W20: 53500
B21: Pendant | E21: -500000 | H21: -0.025 | I21: -200000 | M21: 19 | N21: 13000000 | O21: 8220000 | P21: 1850000 | Q21: 155000 | S21: 19 | T21: 0 | U21: 5760000 | V21: 1296000 | W21: 108000
B22: PURPLE | C22: =SUM(C15:C21) -> -3000000 | D22: -0.05 | E22: -1500000 | F22: -0.05 | G22: -300000 | H22: -0.05 | I22: -600000 | J22: -0.05 | M22: 20 | N22: 16700000 | O22: 8330000 | P22: 2780000 | Q22: 278000 | S22: 20 | T22: 0 | U22: 5830000 | V22: 1942000 | W22: 194500
M23: 21 | N23: 21400000 | O23: 7490000 | P23: 4120000 | Q23: 469000 | S23: 21 | T23: 0 | U23: 5250000 | V23: 2900000 | W23: 328000
B24: Orange Iseult Armor | M24: 22 | N24: 27300000 | O24: 5060000 | P24: 6080000 | Q24: 760000 | S24: 22 | T24: 0 | U24: 3540000 | V24: 4260000 | W24: 535000
C25: food | E25: wood | G25: Silver | I25: Iron | M25: 23 | N25: 36200000 | O25: 6830000 | P25: 7520000 | Q25: 1200000 | S25: 23 | T25: 0 | U25: 4780000 | V25: 5260000 | W25: 840000
B26: Helm | E26: -1000000 | F26: -0.05 | I26: -400000 | M26: 24 | N26: 48000000 | O26: 9220000 | P26: 9220000 | Q26: 1850000 | S26: 24 | T26: 0 | U26: 6450000 | V26: 6460000 | W26: 1290000
B27: Armor | C27: -2000000 | D27: -0.1 | G27: -200000 | M27: 25 | N27: 63500000 | O27: 12500000 | P27: 11200000 | Q27: 2800000 | S27: 25 | T27: 0 | U27: 8710000 | V27: 7840000 | W27: 1960000
B28: Ring | C28: -2000000 | H28: -0.05 | I28: -400000 | M28: 26 | N28: 84000000 | O28: 16800000 | P28: 13440000 | Q28: 4200000 | S28: 26 | T28: 0 | U28: 12000000 | V28: 9400000 | W28: 2960000
M29: 27 | N29: 114000000 | O29: 22700000 | P29: 15880000 | Q29: 6250000 | S29: 27 | T29: 0 | U29: 15900000 | V29: 11120000 | W29: 4365000
B30: Weapon | C30: -2000000 | G30: -200000 | J30: -0.1 | M30: 28 | N30: 154000000 | O30: 30700000 | P30: 18380000 | Q30: 9200000 | S30: 28 | T30: 0 | U30: 21500500 | V30: 12860000 | W30: 6450000
B31: Boots | E31: -1000000 | F31: -0.05 | G31: -200000 | M31: 29 | N31: 206950000 | O31: 41400000 | P31: 24800000 | Q31: 12400000 | S31: 29 | T31: 0
B32: Pendant | E32: -1000000 | H32: -0.05 | I32: -400000 | M32: 30 | N32: 279000000 | O32: 55800000 | P32: 33600000 | Q32: 16750000 | S32: 30 | T32: 0
B33: ORANGE | C33: =SUM(C26:C32) -> -6000000 | D33: -0.1 | E33: -3000000 | F33: -0.1 | G33: -600000 | H33: -0.1 | I33: -1200000 | J33: -0.1 | M33: 31 | N33: 377000000 | O33: 75000000 | P33: 45200000 | Q33: 22600000 | S33: 31 | T33: 0 | U33: 49200000 | V33: 23600000 | W33: 11750000
M34: 32 | N34: 377000000 | O34: 75000000 | P34: 45200000 | Q34: 22600000 | S34: 32 | T34: 0
B35: Retribution Armor | M35: 33 | O35: 114300000 | S35: 33 | T35: 0 | U35: 69400000 | V35: 23600000 | W35: 11750000
C36: food | E36: wood | G36: Silver | I36: Iron | M36: 34 | S36: 34 | T36: 0
B37: Helm | E37: -2000000 | F37: -0.1 | I37: -800000 | M37: 35 | S37: 35 | T37: 0
B38: Armor | C38: -4000000 | D38: -0.2 | G38: -400000
B39: Ring | C39: -4000000 | H39: -0.1 | I39: -800000
B41: Weapon | C41: -4000000 | G41: -400000 | J41: -0.2
B42: Boots | E42: -2000000 | F42: -0.1 | G42: -400000
B43: Pendant | C43: -2000000 | H43: -0.1 | I43: -800000
B44: Retribution | C44: =SUM(C37:C43) -> -14000000 | D44: =SUM(D37:D43) -> -0.2 | E44: -4000000 | F44: -0.2 | G44: -1200000 | H44: -0.2 | I44: -2400000 | J44: -0.2
B46: NONE | C46: 0 | D46: 0 | E46: 0 | F46: 0 | G46: 0 | H46: 0 | I46: 0 | J46: 0
